{"text_format":"1","workbook":"xlsx","n_sheets":2,"sheets":["Лист для печати","Лист для ввода"],"not_rendered":{"charts":0,"images":1,"macros":1,"external_links":0,"defined_names":2,"comments":0,"pivot_tables":0},"unopened":[],"bounds":{"document_bytes":16777216,"sheet_cells":100000,"rows_first":2000,"rows_last":500,"rows_between":2000,"halvings":0,"cell_chars":16384,"cell_head_chars":4096},"cells_cut":0,"cells_raw":0,"read":"whole","date_system":"1900"}

{"sheet":"Лист для печати","index":0,"n_rows":106,"n_cols":13,"rows_kept":106,"cut":false,"hidden":false,"merged":[[6,0,6,12],[7,0,7,12],[8,0,8,12],[9,0,9,12],[10,0,10,12],[0,2,0,12],[14,4,14,6],[14,12,15,12],[1,10,1,12],[14,7,14,9],[14,11,15,11],[3,0,3,12],[4,0,4,12],[5,0,5,12],[14,10,15,10],[14,0,15,0],[14,1,14,3],[11,0,11,12],[12,0,12,12]]}
[null,null,"Включить содержимое.\nКнопку нажимать только после того, как \"Лист для ввода\" полностью заполнен.\nВ конце данного листа вставить данные для подписи."]
[null,null,null,null,null,null,null,null,null,null,"Ежеквартально, до 20 числа месяца, следующего за отчетным кварталом"]
[null,null,null,null,null,null,null,null,null,null,"на эл. адрес: monitor@krasnodar.ru"]
[{"$f":"'Лист для ввода'!A4:L4","v":"ОТЧЕТ "}]
[{"$f":"'Лист для ввода'!A5:M5","v":"об объемах финансирования местных бюджетов \nв рамках реализации государственной программы Краснодарского края"}]
[{"$f":"'Лист для ввода'!A6:M6","v":"\"Развитие сельского хозяйства и регулирование рынков сельскохозяйственной продукции, сырья и продовольствия\""}]
[{"$f":"'Лист для ввода'!A7:M7","v":"(наименование государственной программы)"}]
[{"$f":"'Лист для ввода'!A8:M8","v":"\"Обеспечение эпизоотического, ветеринарно-санитарного благополучия в Краснодарском крае и развитие  государственной ветеринарной службы Краснодарского края\""}]
[{"$f":"'Лист для ввода'!A9:M9","v":"(наименование подпрограммы государственной программы)"}]
[{"$f":"'Лист для ввода'!A10:M10","v":"Субвенции на осуществление государственных полномочий по предупреждению и ликвидации болезней животных, их лечению, отлову и содержанию безнадзорных животных, защите населения от болезнй, общих для человека и животных в части регулирования численности безнадзорных животных на территории муниципальных образований Краснодарского края "}]
[{"$f":"'Лист для ввода'!A11:M11","v":"(наименование субсидии (субвенции, иных межбюджетных трансфертов)"}]
[{"$f":"'Лист для ввода'!A12:M12","v":"за 1 квартал 2018  год"}]
[{"$f":"'Лист для ввода'!A13:M13","v":"(за I квартал, первое полугодие, 9 месяцев, год)"}]
[null,null,null,null,null,null,null,null,null,null,null,null,"тыс.рублей"]
["Наименование муници-пального образования (получателя субсидии, субвенции, иных межбюджетных трансфертов)","Объем финансирования на текущий год, предусмотренный бюджетом",null,null,"Профинансировано в отчетном периоде",null,null,"Освоено в отчетном периоде ",null,null,"Дата заключения соглашения с муниципальным образованием (дд.мм.гггг)","Причины неполного (отсутствия) финансирования","Причины неосвоения"]
[null,"федеральный бюджет","краевой бюджет","местный бюджет","федеральный бюджет","краевой бюджет","местный бюджет","федеральный бюджет","краевой бюджет","местный бюджет"]
[1,2,3,4,5,6,7,8,9,10,11,12,13]
["Всего:",0,13217.300000000001,0,0,0,0,0,0,0]
["город-курорт Анапа ",null,836,null,null,null,null,null,null,null,"22.03.2018"]
["город Армавир ",null,243.8]
["город-курорт Геленджик ",null,192.2]
["город Горячий Ключ ",null,381.8]
["город Краснодар ",null,2949.6]
["город Новороссийск ",null,172.4]
["город-курорт Сочи ",null,3241,null,null,null,null,null,null,null,"22.03.2018"]
["Абинский район,\nвсего район и поселения",0,7,0,0,0,0,0,0,0,"30.03.2018"]
["Абинский район ",null,7]
["Апшеронский район,\nвсего район и поселения",0,49.6,0,0,0,0,0,0,0,"22.03.2018"]
["Апшеронский район",null,49.6]
["Белоглинский район,\nвсего район и поселения ",0,17.399999999999999,0,0,0,0,0,0,0,"22.03.2018"]
["Белоглинский район",null,17.399999999999999]
["Белореченский район,\nвсего район и поселения",0,130.5,0,0,0,0,0,0,0,"22.03.2018"]
["Белореченский район",null,130.5]
["Брюховецкий район,\nвсего район и поселения",0,6.7,0,0,0,0,0,0,0,"22.03.2018"]
["Брюховецкий район",null,6.7]
["Выселковский район,\nвсего район и поселения",0,16.100000000000001,0,0,0,0,0,0,0,"22.03.2018"]
["Выселковский район",null,16.100000000000001]
[" Бейсугское с/п",null,","]
["Гулькевичский район,\nвсего район и поселения",0,168.3,0,0,0,0,0,0,0,"23.03.2018"]
["Гулькевичский район",null,168.3]
["Динской район,\nвсего район и поселения",0,337.6,0,0,0,0,0,0,0]
["Динской район",null,337.6]
["Ейский район,\nвсего район и поселения",0,295.5,0,0,0,0,0,0,0,"30.03.2018"]
["Ейский район",null,295.5]
["Кавказский район,\nвсего район и поселения",0,264.8,0,0,0,0,0,0,0]
["Кавказский район",null,264.8]
["Калининский район,\nвсего район и поселения",0,7.1,0,0,0,0,0,0,0]
["Калининский район",null,7.1]
["Каневской район,\nвсего район и поселения",0,42.4,0,0,0,0,0,0,0,"22.03.2018"]
["Каневской район",null,42.4]
["Кореновский район,\nвсего район и поселения",0,337.6,0,0,0,0,0,0,0]
["Кореновский район",null,337.6]
["Красноармейский район,\nвсего район и поселения",0,105.7,0,0,0,0,0,0,0,"30.03.2018"]
["Красноармейский район",null,105.7]
["Крыловский район,\nвсего район и поселения",0,64.5,0,0,0,0,0,0,0]
["Крыловский район",null,64.5]
["Крымский район,\nвсего район и поселения",0,75,0,0,0,0,0,0,0]
["Крымский район",null,75]
["Курганинский район,\nвсего район и поселения",0,49,0,0,0,0,0,0,0,"22.03.2018"]
["Курганинский район",null,49]
["Кущевский район,\nвсего район и поселения",0,45.6,0,0,0,0,0,0,0]
["Кущевский район",null,45.6]
["Лабинский район,\nвсего район и поселения",0,20.100000000000001,0,0,0,0,0,0,0]
["Лабинский район",null,20.100000000000001]
["Ленинградский район,\nвсего район и поселения",0,94.3,0,0,0,0,0,0,0,"22.03.2018"]
["Ленинградский район",null,94.3]
["Мостовский район,\nвсего район и поселения",0,18,0,0,0,0,0,0,0,"28.03.2018"]
["Мостовский район",null,18]
["Новокубанский район,\nвсего район и поселения",0,174.2,0,0,0,0,0,0,0]
["Новокубанский район",null,174.2]
["Новопокровский район,\nвсего район и поселения",0,13.4,0,0,0,0,0,0,0]
["Новопокровский район",null,13.4]
["Отрадненский район,\nвсего район и поселения",0,10.5,0,0,0,0,0,0,0]
["Отрадненский район",null,10.5]
["Павловский район,\nвсего район и поселения",0,46.2,0,0,0,0,0,0,0]
["Павловский район",null,46.2]
["Приморско-Ахтарский район,\nвсего район и поселения",0,99.1,0,0,0,0,0,0,0]
["Приморско-Ахтарский район",null,99.1]
["Северский район,\nвсего район и поселения",0,89.4,0,0,0,0,0,0,0,"22.03.2018"]
["Северский район",null,89.4]
["Славянский район,\nвсего район и поселения",0,423.4,0,0,0,0,0,0,0]
["Славянский район",null,423.4]
["Староминский район,\nвсего район и поселения",0,124,0,0,0,0,0,0,0]
["Староминский район",null,124]
["Тбилисский район,\nвсего район и поселения",0,14.6,0,0,0,0,0,0,0,"22.03.2018"]
["Тбилисский район",null,14.6]
["Темрюкский район,\nвсего район и поселения",0,235.8,0,0,0,0,0,0,0]
["Темрюкский район",null,235.8]
["Тимашевский район,\nвсего район и поселения",0,221.1,0,0,0,0,0,0,0,"22.03.2018"]
["Тимашевский район",null,221.1]
["Тихорецкий район,\nвсего район и поселения",0,128.4,0,0,0,0,0,0,0,"22.03.2018"]
["Тихорецкий район",null,128.4]
["Туапсинский район,\nвсего район и поселения",0,1134.8,0,0,0,0,0,0,0,"30.03.2018"]
["Туапсинский район",null,1134.8]
["Успенский район,\nвсего район и поселения",0,138.19999999999999,0,0,0,0,0,0,0]
["Успенский район",null,138.19999999999999]
["Усть-Лабинский район,\nвсего район и поселения",0,170,0,0,0,0,0,0,0]
["Усть-Лабинский район",null,170]
["Щербиновский район,\nвсего район и поселения",0,24.6,0,0,0,0,0,0,0]
["Щербиновский район",null,24.6]
[]
["Руководитель органа исполнительной власти, структурного подразделения администрации Краснодарского края",null,null,null,null,null,null,null,null,"Р.А. Кривонос"]
["Главный бухгалтер",null,null,null,null,null,null,null,null,"Н.В. Егорова"]
["Начальник отдела",null,null,null,null,null,null,null,null,"Д.В. Коломиец"]
[]
["исполнитель: И.И. Белецкая,                       тел.267-17-81"]

{"sheet":"Лист для ввода","index":1,"n_rows":495,"n_cols":13,"rows_kept":495,"cut":false,"hidden":false,"merged":[[10,0,10,12],[11,0,11,12],[12,0,12,12],[0,7,0,9],[0,10,0,12],[3,0,3,12],[4,0,4,12],[5,0,5,12],[6,0,6,12],[7,0,7,12],[8,0,8,12],[9,0,9,12],[484,0,484,12],[485,0,485,12],[487,0,487,12],[489,0,489,2],[14,10,15,10],[14,11,15,11],[14,12,15,12],[483,0,483,12],[14,0,15,0],[14,1,14,3],[14,4,14,6],[14,7,14,9]]}
[null,null,null,null,null,null,null,null,null,null,"Ежеквартально, до 20 числа месяца, следующего за отчетным кварталом"]
[null,null,null,null,null,null,null,null,null,null,"на эл. адрес: monitor@krasnodar.ru"]
[]
["ОТЧЕТ "]
["об объемах финансирования местных бюджетов \nв рамках реализации государственной программы Краснодарского края"]
["\"Развитие сельского хозяйства и регулирование рынков сельскохозяйственной продукции, сырья и продовольствия\""]
["(наименование государственной программы)"]
["\"Обеспечение эпизоотического, ветеринарно-санитарного благополучия в Краснодарском крае и развитие  государственной ветеринарной службы Краснодарского края\""]
["(наименование подпрограммы государственной программы)"]
["Субвенции на осуществление государственных полномочий по предупреждению и ликвидации болезней животных, их лечению, отлову и содержанию безнадзорных животных, защите населения от болезнй, общих для человека и животных в части регулирования численности безнадзорных животных на территории муниципальных образований Краснодарского края "]
["(наименование субсидии (субвенции, иных межбюджетных трансфертов)"]
["за 1 квартал 2018  год"]
["(за I квартал, первое полугодие, 9 месяцев, год)"]
[null,null,null,null,null,null,null,null,null,null,null,null,"тыс.рублей"]
["Наименование муници-пального образования (получателя субсидии, субвенции, иных межбюджетных трансфертов)","Объем финансирования на текущий год, предусмотренный бюджетом",null,null,"Профинансировано в отчетном периоде",null,null,"Освоено в отчетном периоде ",null,null,"Дата заключения соглашения с муниципальным образованием (дд.мм.гггг)1)","Причины неполного (отсутствия) финансирования2)","Причины неосвоения3)"]
[null,"федеральный бюджет","краевой бюджет","местный бюджет 4)","федеральный бюджет","краевой бюджет","местный бюджет","федеральный бюджет","краевой бюджет","местный бюджет"]
[1,2,3,4,5,6,7,8,9,10,11,12,13]
["Всего:",{"$f":"B19+B20+B21+B22+B23+B24+B25+B26+B27+B37+B51+B57+B70+B80+B92+B109+B121+B134+B145+B155+B166+B178+B190+B198+B211+B223+B237+B252+B266+B282+B293+B303+B319+B332+B343+B357+B374+B381+B391+B405+B417+B432+B444+B456+B473","v":0},{"$f":"C19+C20+C21+C22+C23+C24+C25+C26+C27+C37+C51+C57+C70+C80+C92+C109+C121+C134+C145+C155+C166+C178+C190+C198+C211+C223+C237+C252+C266+C282+C293+C303+C319+C332+C343+C357+C374+C381+C391+C405+C417+C432+C444+C456+C473","v":13217.300000000001},{"$f":"D19+D20+D21+D22+D23+D24+D25+D26+D27+D37+D51+D57+D70+D80+D92+D109+D121+D134+D145+D155+D166+D178+D190+D198+D211+D223+D237+D252+D266+D282+D293+D303+D319+D332+D343+D357+D374+D381+D391+D405+D417+D432+D444+D456+D473","v":0},0,0,0,0,0,0]
["нераспределенный резерв"]
["город-курорт Анапа ",null,836,null,null,null,null,null,null,null,"22.03.2018"]
["город Армавир ",null,243.8]
["город-курорт Геленджик ",null,192.2]
["город Горячий Ключ ",null,381.8]
["город Краснодар ",null,2949.6]
["город Новороссийск ",null,172.4]
["город-курорт Сочи ",null,3241,null,null,null,null,null,null,null,"22.03.2018"]
["Абинский район,\nвсего район и поселения",{"$f":"SUM(B28:B36)","v":0},{"$f":"SUM(C28:C36)","v":7},{"$f":"SUM(D28:D36)","v":0},0,0,0,0,0,0,"30.03.2018"]
["Абинский район ",null,7]
[" Абинское г/п"]
[" Ахтырское г/п"]
[" Варнавинское с/п"]
[" Мингрельское с/п"]
[" Ольгинское с/п"]
[" Светлогорское с/п"]
[" Федоровское с/п"]
[" Холмское с/п"]
["Апшеронский район,\nвсего район и поселения",{"$f":"SUM(B38:B50)","v":0},{"$f":"SUM(C38:C50)","v":49.6},{"$f":"SUM(D38:D50)","v":0},0,0,0,0,0,0,"22.03.2018"]
["Апшеронский район",null,49.6]
[" Апшеронское г/п"]
[" Кабардинское с/п"]
[" Кубанское с/п"]
[" Куринское с/п"]
[" Мезмайское с/п"]
[" Нефтегорское г/п"]
[" Нижегородское г/п"]
[" Новополянское с/п"]
[" Отдаленное с/п"]
[" Тверское с/п"]
[" Хадыженское г/п"]
[" Черниговское с/п"]
["Белоглинский район,\nвсего район и поселения ",{"$f":"SUM(B52:B56)","v":0},{"$f":"SUM(C52:C56)","v":17.399999999999999},{"$f":"SUM(D52:D56)","v":0},0,0,0,0,0,0,"22.03.2018"]
["Белоглинский район",null,17.399999999999999]
[" Белоглинское с/п"]
[" Новопавловское с/п"]
[" Успенское с/п"]
[" Центральное с/п"]
["Белореченский район,\nвсего район и поселения",{"$f":"SUM(B58:B69)","v":0},{"$f":"SUM(C58:C69)","v":130.5},{"$f":"SUM(D58:D69)","v":0},0,0,0,0,0,0,"22.03.2018"]
["Белореченский район",null,130.5]
[" Белореченское г/п"]
[" Бжедуховское с/п"]
[" Великовечненское с/п"]
[" Дружненское с/п"]
[" Первомайское с/п"]
[" Пшехское с/п"]
[" Родниковское с/п"]
[" Рязанское с/п"]
[" Школьненское с/п"]
[" Черниговское с/п"]
[" Южненское с/п"]
["Брюховецкий район,\nвсего район и поселения",{"$f":"SUM(B71:B79)","v":0},{"$f":"SUM(C71:C79)","v":6.7},{"$f":"SUM(D71:D79)","v":0},0,0,0,0,0,0,"22.03.2018"]
["Брюховецкий район",null,6.7]
[" Батуринское с/п"]
[" Большебейсугское с/п"]
[" Брюховецкое с/п"]
[" Новоджерелиевское с/п"]
[" Новосельское с/п"]
[" Переясловское с/п"]
[" Свободненское с/п"]
[" Чепигинское с/п"]
["Выселковский район,\nвсего район и поселения",{"$f":"SUM(B81:B91)","v":0},{"$f":"SUM(C81:C91)","v":16.100000000000001},{"$f":"SUM(D81:D91)","v":0},0,0,0,0,0,0,"22.03.2018"]
["Выселковский район",null,16.100000000000001]
[" Бейсугское с/п",null,","]
[" Бейсужекское с/п"]
[" Березанское с/п"]
[" Бузиновское с/п"]
[" Выселковское с/п"]
[" Газырское с/п"]
[" Ирклиевское с/п"]
[" Крупское с/п"]
[" Новобейсугское с/п"]
[" Новомалороссийское с/п"]
["Гулькевичский район,\nвсего район и поселения",{"$f":"SUM(B93:B108)","v":0},{"$f":"SUM(C93:C108)","v":168.3},{"$f":"SUM(D93:D108)","v":0},0,0,0,0,0,0,"23.03.2018"]
["Гулькевичский район",null,168.3]
[" Гулькевичское г/п"]
[" Гирейское г/п"]
[" Венцы-Заря с/п"]
[" Комсомольское с/п"]
[" Красносельское г/п"]
[" Кубань с/п"]
[" Николенское с/п"]
[" Новоукраинское с/п"]
[" Отрадно-Кубанское с/п"]
[" Отрадно-Ольгинское с/п"]
[" Пушкинское с/п"]
[" Скобелевское с/п"]
[" Соколовское с/п"]
[" Союз 4-х хуторов с/п"]
[" Тысячное с/п"]
["Динской район,\nвсего район и поселения",{"$f":"SUM(B110:B120)","v":0},{"$f":"SUM(C110:C120)","v":337.6},{"$f":"SUM(D110:D120)","v":0},0,0,0,0,0,0]
["Динской район",null,337.6]
[" Васюринское с/п"]
[" Динское с/п"]
[" Красносельское с/п"]
[" Мичуринское с/п"]
[" Нововеличковское с/п"]
[" Новотитаровское с/п"]
[" Первореченское с/п"]
[" Пластуновское с/п"]
[" Старомышастовское с/п"]
[" Южно-Кубанское с/п"]
["Ейский район,\nвсего район и поселения",{"$f":"SUM(B122:B133)","v":0},{"$f":"SUM(C122:C133)","v":295.5},{"$f":"SUM(D122:D133)","v":0},0,0,0,0,0,0,"30.03.2018"]
["Ейский район",null,295.5]
[" Александровское с/п"]
[" Должанское с/п"]
[" Ейское г/п"]
[" Ейское с/п"]
[" Камышеватское с/п"]
[" Копанское с/п"]
[" Красноармейское с/п"]
[" Кухаривское с/п"]
[" Моревское с/п"]
[" Трудовое с/п"]
[" Ясенское с/п"]
["Кавказский район,\nвсего район и поселения",{"$f":"SUM(B135:B144)","v":0},{"$f":"SUM(C135:C144)","v":264.8},{"$f":"SUM(D135:D144)","v":0},0,0,0,0,0,0]
["Кавказский район",null,264.8]
[" Дмитриевское с/п"]
[" им. М. Горького с/п"]
[" Кавказское с/п"]
[" Казанское с/п"]
[" Кропоткинское г/п"]
[" Лосевское с/п"]
[" Мирское с/п"]
[" Привольное с/п"]
[" Темижбекское с/п"]
["Калининский район,\nвсего район и поселения",{"$f":"SUM(B146:B154)","v":0},{"$f":"SUM(C146:C154)","v":7.1},{"$f":"SUM(D146:D154)","v":0},0,0,0,0,0,0]
["Калининский район",null,7.1]
[" Бойкопонурское с/п"]
[" Гривенское с/п"]
[" Гришковское с/п"]
[" Джумайловское с/п"]
[" Калининское с/п"]
[" Куйбышевское с/п"]
[" Новониколаевское с/п"]
[" Старовеличковское с/п"]
["Каневской район,\nвсего район и поселения",{"$f":"SUM(B156:B165)","v":0},{"$f":"SUM(C156:C165)","v":42.4},{"$f":"SUM(D156:D165)","v":0},0,0,0,0,0,0,"22.03.2018"]
["Каневской район",null,42.4]
[" Каневское с/п"]
[" Красногвардейское с/п"]
[" Кубанскостепное с/п"]
[" Новодерявянковское с/п"]
[" Новоминское с/п"]
[" Привольненское с/п"]
[" Придорожное с/п"]
[" Стародеревянковское с/п"]
[" Челбасское с/п"]
["Кореновский район,\nвсего район и поселения",{"$f":"SUM(B167:B177)","v":0},{"$f":"SUM(C167:C177)","v":337.6},{"$f":"SUM(D167:D177)","v":0},0,0,0,0,0,0]
["Кореновский район",null,337.6]
[" Братковское с/п"]
[" Бураковское с/п"]
[" Дядьковское с/п"]
[" Журавское с/п"]
[" Кореновское г/п"]
[" Новоберезанское с/п"]
[" Платнировское с/п"]
[" Пролетарское с/п"]
[" Раздольненское с/п"]
[" Сергиевское с/п"]
["Красноармейский район,\nвсего район и поселения",{"$f":"SUM(B179:B189)","v":0},{"$f":"SUM(C179:C189)","v":105.7},{"$f":"SUM(D179:D189)","v":0},0,0,0,0,0,0,"30.03.2018"]
["Красноармейский район",null,105.7]
[" Ивановское с/п"]
[" Марьянское с/п"]
[" Новомышастовское с/п"]
[" Октябрьское с/п"]
[" Полтавское с/п"]
[" Протичкинское с/п"]
[" Староджерелиевское с/п"]
[" Старонижнестеблиевское с/п"]
[" Трудобеликовское с/п"]
[" Чебургольское с/п"]
["Крыловский район,\nвсего район и поселения",{"$f":"SUM(B191:B197)","v":0},{"$f":"SUM(C191:C197)","v":64.5},{"$f":"SUM(D191:D197)","v":0},0,0,0,0,0,0]
["Крыловский район",null,64.5]
[" Крыловское с/п"]
[" Кугоейское с/п"]
[" Новопашковское с/п"]
[" Новосергиевское с/п"]
[" Октябрьское с/п"]
[" Шевченковское с/п"]
["Крымский район,\nвсего район и поселения",{"$f":"SUM(B199:B210)","v":0},{"$f":"SUM(C199:C210)","v":75},{"$f":"SUM(D199:D210)","v":0},0,0,0,0,0,0]
["Крымский район",null,75]
[" Адагумское с/п"]
[" Варениковское с/п"]
[" Кеслеровское с/п"]
[" Киевское с/п"]
[" Крымское г/п"]
[" Мерчанское с/п"]
[" Молдаванское с/п"]
[" Нижнебаканское с/п"]
[" Пригородное с/п"]
[" Троицкое с/п"]
[" Южное с/п"]
["Курганинский район,\nвсего район и поселения",{"$f":"SUM(B212:B222)","v":0},{"$f":"SUM(C212:C222)","v":49},{"$f":"SUM(D212:D222)","v":0},0,0,0,0,0,0,"22.03.2018"]
["Курганинский район",null,49]
[" Безводное с/п"]
[" Воздвиженское с/п"]
[" Константиновское с/п"]
[" Курганинское г/п"]
[" Михайловское с/п"]
[" Новоалексеевское с/п"]
[" Октябрьское с/п"]
[" Петропавловское с/п"]
[" Родниковское с/п"]
[" Темиргоевское с/п"]
["Кущевский район,\nвсего район и поселения",{"$f":"SUM(B224:B236)","v":0},{"$f":"SUM(C224:C236)","v":45.6},{"$f":"SUM(D224:D236)","v":0},0,0,0,0,0,0]
["Кущевский район",null,45.6]
[" Глебовское с/п"]
[" Ильинское с/п"]
[" Кисляковское с/п"]
[" Краснополянское с/п"]
[" Красносельское с/п"]
[" Кущевское с/п"]
[" Новомихайловское с/п"]
[" Первомайское с/п"]
[" Полтавченское с/п"]
[" Раздольненское с/п"]
[" Среднечубуркское с/п"]
[" Шкуринское с/п"]
["Лабинский район,\nвсего район и поселения",{"$f":"SUM(B238:B251)","v":0},{"$f":"SUM(C238:C251)","v":20.100000000000001},{"$f":"SUM(D238:D251)","v":0},0,0,0,0,0,0]
["Лабинский район",null,20.100000000000001]
[" Ахметовское с/п"]
[" Владимирское с/п"]
[" Вознесенское с/п"]
[" Зассовское с/п"]
[" Каладжинское с/п"]
[" Лабинское г/п"]
[" Лучевое с/п"]
[" Отважненское с/п"]
[" Первосинюхинское с/п"]
[" Сладковское с/п"]
[" Упорненское с/п"]
[" Харьковское с/п"]
[" Чамлыкское с/п"]
["Ленинградский район,\nвсего район и поселения",{"$f":"SUM(B253:B265)","v":0},{"$f":"SUM(C253:C265)","v":94.3},{"$f":"SUM(D253:D265)","v":0},0,0,0,0,0,0,"22.03.2018"]
["Ленинградский район",null,94.3]
[" Белохуторское с/п"]
[" Западное с/п"]
[" Коржовское с/п"]
[" Крыловское с/п"]
[" Куликовское с/п"]
[" Восточное с/п"]
[" Ленинградское с/п"]
[" Новоплатнировское с/п"]
[" Новоуманское с/п"]
[" Образцовое с/п"]
[" Первомайское с/п"]
[" Уманское с/п"]
["Мостовский район,\nвсего район и поселения",{"$f":"SUM(B267:B281)","v":0},{"$f":"SUM(C267:C281)","v":18},{"$f":"SUM(D267:D281)","v":0},0,0,0,0,0,0,"28.03.2018"]
["Мостовский район",null,18]
[" Андрюковское с/п"]
[" Баговское с/п"]
[" Беноковское с/п"]
[" Бесленеевское с/п"]
[" Губское с/п"]
[" Костромское с/п"]
[" Краснокутское с/п"]
[" Махошевское с/п"]
[" Мостовское г/п"]
[" Переправненское с/п"]
[" Псебайское г/п"]
[" Унароковское с/п"]
[" Шедокское с/п"]
[" Ярославское с/п"]
["Новокубанский район,\nвсего район и поселения",{"$f":"SUM(B283:B292)","v":0},{"$f":"SUM(C283:C292)","v":174.2},{"$f":"SUM(D283:D292)","v":0},0,0,0,0,0,0]
["Новокубанский район",null,174.2]
[" Бесскорбненское с/п"]
[" Верхнекубанское с/п"]
[" Ковалевское с/п"]
[" Ляпинское с/п"]
[" Новокубанское г/п"]
[" Новосельское с/п"]
[" Прикубанское с/п"]
[" Прочноокопское с/п"]
[" Советское с/п"]
["Новопокровский район,\nвсего район и поселения",{"$f":"SUM(B294:B302)","v":0},{"$f":"SUM(C294:C302)","v":13.4},{"$f":"SUM(D294:D302)","v":0},0,0,0,0,0,0]
["Новопокровский район",null,13.4]
[" Горькобалковское с/п"]
[" Ильинское с/п"]
[" Калниболотское с/п"]
[" Кубанское с/п"]
[" Незамаевское с/п"]
[" Новоивановское с/п"]
[" Новопокровское с/п"]
[" Покровское с/п"]
["Отрадненский район,\nвсего район и поселения",{"$f":"SUM(B304:B318)","v":0},{"$f":"SUM(C304:C318)","v":10.5},{"$f":"SUM(D304:D318)","v":0},0,0,0,0,0,0]
["Отрадненский район",null,10.5]
[" Бесстрашненское с/п"]
[" Благодарненское с/п"]
[" Красногвардейское с/п"]
[" Малотенгинское с/п"]
[" Маякское с/п"]
[" Надежненское с/п"]
[" Отрадненское с/п"]
[" Передовское с/п"]
[" Подгорненское с/п"]
[" Подгорносинюхинское с/п"]
[" Попутненское с/п"]
[" Рудьевское с/п"]
[" Спокойненское с/п"]
[" Удобненское с/п"]
["Павловский район,\nвсего район и поселения",{"$f":"SUM(B320:B331)","v":0},{"$f":"SUM(C320:C331)","v":46.2},{"$f":"SUM(D320:D331)","v":0},0,0,0,0,0,0]
["Павловский район",null,46.2]
[" Атаманское с/п"]
[" Веселовское с/п"]
[" Незамаевское с/п"]
[" Новоулешковское с/п"]
[" Новопетровское с/п"]
[" Новопластуновское с/п"]
[" Павловское с/п"]
[" Северное с/п"]
[" Среднечелбасское"]
[" Староулешковское с/п"]
["Упорненское с/п"]
["Приморско-Ахтарский район,\nвсего район и поселения",{"$f":"SUM(B333:B342)","v":0},{"$f":"SUM(C333:C342)","v":99.1},{"$f":"SUM(D333:D342)","v":0},0,0,0,0,0,0]
["Приморско-Ахтарский район",null,99.1]
[" Ахтарское с/п"]
[" Бородинское с/п"]
[" Бриньковское с/п"]
[" Новопокровское с/п"]
[" Ольгинское с/п"]
[" Приазовское с/п"]
["Приморско-Ахтарское г/п"]
[" Свободное с/п"]
[" Степное с/п"]
["Северский район,\nвсего район и поселения",{"$f":"SUM(B344:B356)","v":0},{"$f":"SUM(C344:C356)","v":89.4},{"$f":"SUM(D344:D356)","v":0},0,0,0,0,0,0,"22.03.2018"]
["Северский район",null,89.4]
[" Азовское с/п"]
[" Афипское г/п"]
[" Григорьевское с/п"]
[" Ильское г/п"]
[" Калужское с/п"]
[" Львовское с/п"]
[" Михайловское с/п"]
[" Новодмитриевское с/п"]
[" Северское с/п"]
[" Смоленское с/п"]
[" Черноморское г/п"]
[" Шабановское с/п"]
["Славянский район,\nвсего район и поселения",{"$f":"SUM(B358:B373)","v":0},{"$f":"SUM(C358:C373)","v":423.4},{"$f":"SUM(D358:D373)","v":0},0,0,0,0,0,0]
["Славянский район",null,423.4]
[" Анастасиевское с/п   "]
[" Ачуевское с/п"]
[" Голубая Нива с/п"]
[" Забойское с/п "]
[" Кировское с/п"]
[" Коржевское с/п "]
[" Маевское с/п  "]
[" Петровское с/п"]
[" Прибрежное с/п "]
[" Прикубанское с/п"]
[" Протокское с/п "]
[" Рисовое с/п "]
[" Славянское г/п"]
[" Целинное с/п"]
[" Черноерковское с/п"]
["Староминский район,\nвсего район и поселения",{"$f":"SUM(B375:B380)","v":0},{"$f":"SUM(C375:C380)","v":124},{"$f":"SUM(D375:D380)","v":0},0,0,0,0,0,0]
["Староминский район",null,124]
[" Канеловское с/п"]
[" Рассветовское с/п"]
[" Куйбышевское с/п"]
[" Новоясенское с/п"]
[" Староминское с/п"]
["Тбилисский район,\nвсего район и поселения",{"$f":"SUM(B382:B390)","v":0},{"$f":"SUM(C382:C390)","v":14.6},{"$f":"SUM(D382:D390)","v":0},0,0,0,0,0,0,"22.03.2018"]
["Тбилисский район",null,14.6]
[" Алексее-Тенгинское с/п"]
[" Ванновское с/п"]
[" Геймановское с/п"]
[" Ловлинское с/п"]
[" Марьинское с/п"]
[" Нововладимировское с/п"]
[" Песчаное с/п"]
[" Тбилисское с/п"]
["Темрюкский район,\nвсего район и поселения",{"$f":"SUM(B392:B404)","v":0},{"$f":"SUM(C392:C404)","v":235.8},{"$f":"SUM(D392:D404)","v":0},0,0,0,0,0,0]
["Темрюкский район",null,235.8]
[" Ахтанизовское с/п"]
[" Вышестиблиевское с/п"]
[" Голубицкое с/п"]
[" Запорожское с/п"]
[" Краснострельское с/п"]
[" Курчанское с/п"]
[" Новотаманское с/п"]
[" Сенное с/п"]
[" Старотитаровское с/п"]
[" Таманское с/п"]
[" Темрюкское г/п"]
[" Фонталовское с/п"]
["Тимашевский район,\nвсего район и поселения",{"$f":"SUM(B406:B416)","v":0},{"$f":"SUM(C406:C416)","v":221.1},{"$f":"SUM(D406:D416)","v":0},0,0,0,0,0,0,"22.03.2018"]
["Тимашевский район",null,221.1]
["Дербентское с/п"]
["Днепровское с/п"]
[" с/п Кубанец"]
[" Медведовское с/п"]
[" Незаймановское с/п"]
[" Новокорсунское с/п"]
[" Новоленинское с/п"]
[" Поселковое с/п"]
[" Роговское с/п"]
["Тимашевское г/п"]
["Тихорецкий район,\nвсего район и поселения",{"$f":"SUM(B418:B431)","v":0},{"$f":"SUM(C418:C431)","v":128.4},{"$f":"SUM(D418:D431)","v":0},0,0,0,0,0,0,"22.03.2018"]
["Тихорецкий район",null,128.4]
["Алексеевское с/п"]
[" Архангельское с/п"]
[" Братское с/п"]
[" Еремизино-Борисовское с/п"]
[" Крутое с/п"]
[" Новорождественское с/п"]
[" Отрадненское с/п"]
[" Парковское с/п"]
[" Терновское с/п"]
[" Тихорецкое г/п"]
[" Фастовецкое с/п"]
[" Хоперское с/п"]
[" Юго-Северное с/п"]
["Туапсинский район,\nвсего район и поселения",{"$f":"SUM(B433:B443)","v":0},{"$f":"SUM(C433:C443)","v":1134.8},{"$f":"SUM(D433:D443)","v":0},0,0,0,0,0,0,"30.03.2018"]
["Туапсинский район",null,1134.8]
[" Вельяминовское с/п"]
[" Георгиевское с/п"]
[" Джубгское г/п"]
[" Небугское с/п"]
[" Новомихайловское г/п"]
[" Октябрьское с/п"]
[" Тенгинское с/п"]
[" Туапсинское г/п"]
[" Шаумянское с/п"]
[" Шепсинское с/п"]
["Успенский район,\nвсего район и поселения",{"$f":"SUM(B445:B455)","v":0},{"$f":"SUM(C445:C455)","v":138.19999999999999},{"$f":"SUM(D445:D455)","v":0},0,0,0,0,0,0]
["Успенский район",null,138.19999999999999]
[" Веселовское с/п"]
[" Вольненское с/п"]
[" Коноковское с/п"]
[" Кургоковское с/п"]
[" Маламинское с/п"]
[" Николаевское с/п"]
[" Трехсельское с/п"]
[" Убеженское с/п"]
[" Урупское с/п"]
[" Успенское с/п"]
["Усть-Лабинский район,\nвсего район и поселения",{"$f":"SUM(B457:B472)","v":0},{"$f":"SUM(C457:C472)","v":170},{"$f":"SUM(D457:D472)","v":0},0,0,0,0,0,0]
["Усть-Лабинский район",null,170]
[" Александровское с/п"]
[" Братское с/п"]
[" Вимовское с/п"]
[" Воронежское с/п"]
[" Восточное с/п"]
[" Двубратское с/п"]
[" Железное с/п"]
[" Кирпильское с/п"]
[" Ладожское с/п"]
[" Ленинское с/п"]
[" Некрасовское с/п"]
[" Новолабинское с/п"]
[" Суворовское с/п"]
[" Тенгинское с/п"]
[" Усть-Лабинское г/п "]
["Щербиновский район,\nвсего район и поселения",{"$f":"SUM(B474:B482)","v":0},{"$f":"SUM(C474:C482)","v":24.6},{"$f":"SUM(D474:D482)","v":0},0,0,0,0,0,0]
["Щербиновский район",null,24.6]
[" Глафировское с/п"]
[" Ейскоукрепленское с/п"]
[" Екатериновское с/п"]
[" Николаевское с/п"]
[" Новощербиновское с/п"]
[" Старощербиновское с/п"]
[" Шабельское с/п"]
[" Щербиновское с/п"]
[]
["1)Указываются реквизиты соглашений и дополнительных соглашений предоставлении субсидии из краевого бюджета, заключенным с муниципальным образованием., заключенных с муниципальными образованиями в отчетном периоде."]
["2)Заполняется в случае, если значения графы «Профинансировано в отчетном периоде» (графы 5-7) меньше «Объем финансирования на текущий год, предусмотренный бюджетом» (графы 2-4)."]
["3)Заполняется в случае если, значения графы «Освоено в отчетном периоде» (графы 8-10) меньше «Профинансировано в отчетном периоде» (графы 5-7)."]
["4) Объем местного бюджета указывается в соответствии с соглашением (дополнительным соглашением) о предоставлении субсидии из краевого бюджета, заключенным с муниципальным образованием."]
["Примечание. В форме не допускается исключать и добавлять графы и скрывать строки."]
[]
["Руководитель органа исполнительной власти, структурного подразделения администрации Краснодарского края ",null,null,null,null,null,null,null,null,"Р.А. Кривонос"]
[null,null,null,null,null,null,null,null,null,"Н.В. Егорова"]
["Главный бухгалтер",null,null,null,null,null,null,null,null,"Д.В. Коломиец"]
["Начальник отдела "]
[]
["исполнитель, тел.267-17-81",null,null,null,null,null,null,null,null,"И.И. Белецкая"]